fUST/lending_fUST_20250619
["ID","MTS","AMOUNT","RATE_DAILY","PERIOD"]
[366473310,1750277314943,-200.0,0.00025164,120]
[366473311,1750277314968,-2000.0,0.000252,30]
[366473312,1750277314991,-2000.0,0.000252,30]
[366473313,1750277315016,-881.0,0.000252,30]
[366473314,1750277315045,-1000.0,0.00025219,120]
[366473315,1750277315068,-500.0,0.00025219,120]
[366473316,1750277315099,-200.0,0.00025224,30]
[366473317,1750277315122,-200.0,0.00025224,30]
[366473318,1750277315146,-200.0,0.00025224,30]
[366473319,1750277315169,-200.0,0.00025224,30]
[366473320,1750277315193,-200.0,0.00025224,30]
[366473321,1750277315216,-200.0,0.00025224,30]
[366473322,1750277315240,-191.0,0.00025228,120]
[366473323,1750277315263,-418.243,0.00025228,120]
[366473324,1750277315287,-1002.6,0.00025228,120]
[366473325,1750277315312,-200.0,0.00025253,120]
[366473326,1750277315338,-200.0,0.00025294,120]
[366473327,1750277315368,-230.29,0.000254,31]
[366473328,1750277315395,-230.29,0.000254,31]
[366473329,1750277315423,-230.29,0.000254,31]
[366473330,1750277315450,-230.29,0.000254,31]
[366473331,1750277315477,-230.29,0.000254,31]
[366473332,1750277315504,-230.29,0.000254,31]
[366473333,1750277315531,-230.29,0.000254,31]
[366473334,1750277315558,-230.29,0.000254,31]
[366473335,1750277315585,-230.29,0.000254,31]
[366473336,1750277315613,-230.29,0.000254,31]
[366473337,1750277315641,-230.29,0.000254,31]
[366473338,1750277315669,-230.29,0.000254,31]
[366473339,1750277315697,-230.29,0.000254,31]
[366473340,1750277315724,-230.29,0.000254,31]
[366473341,1750277315755,-230.29,0.000254,31]
[366473342,1750277315783,-230.29,0.000254,31]
[366473343,1750277315810,-230.29,0.000254,31]
[366473344,1750277315838,-230.29,0.000254,31]
[366473345,1750277315865,-230.29,0.000254,31]
[366473346,1750277315892,-230.29,0.000254,31]
[366473347,1750277315919,-230.29,0.000254,31]
[366473348,1750277315948,-230.29,0.000254,31]
[366473349,1750277316121,-230.29,0.000254,31]
[366473350,1750277316146,-230.29,0.000254,31]
[366473351,1750277316172,-500.0,0.000255,30]
[366473352,1750277316197,-200.0,0.00025502,120]
[366473353,1750277316221,-200.0,0.00025714,120]
[366473354,1750277316251,-230.29,0.000258,31]
[366473355,1750277316280,-230.29,0.000258,31]
[366473356,1750277316309,-230.29,0.000258,31]
[366473357,1750277316336,-230.29,0.000258,31]
[366473358,1750277316362,-230.29,0.000258,31]
[366473359,1750277316389,-230.29,0.000258,31]
[366473360,1750277316416,-230.29,0.000258,31]
[366473361,1750277316442,-230.29,0.000258,31]
[366473362,1750277316469,-230.29,0.000258,31]
[366473363,1750277316496,-230.29,0.000258,31]
[366473364,1750277316523,-230.29,0.000258,31]
[366473365,1750277316549,-230.29,0.000258,31]
[366473366,1750277316576,-230.29,0.000258,31]
[366473367,1750277316606,-230.29,0.000258,31]
[366473368,1750277316634,-230.29,0.000258,31]
[366473369,1750277316662,-230.29,0.000258,31]
[366473370,1750277316689,-230.29,0.000258,31]
[366473371,1750277316715,-230.29,0.000258,31]
[366473372,1750277316743,-230.29,0.000258,31]
[366473373,1750277316770,-230.29,0.000258,31]
[366473374,1750277316795,-230.29,0.000258,31]
[366473375,1750277316824,-230.29,0.000258,31]
[366473376,1750277316851,-230.29,0.000258,31]
[366473377,1750277316877,-230.29,0.000258,31]
[366473378,1750277316900,-25000.0,0.00026,30]
[366473379,1750277316926,-600.0,0.00026,120]
[366473380,1750277316952,-1333.0,0.00026137,120]
[366473381,1750277316978,-230.29,0.000262,31]
[366473382,1750277317004,-230.29,0.000262,31]
[366473383,1750277317030,-230.29,0.000262,31]
[366473384,1750277317055,-230.29,0.000262,31]
[366473385,1750277317080,-230.29,0.000262,31]
[366473386,1750277317106,-230.29,0.000262,31]
[366473387,1750277317131,-230.29,0.000262,31]
[366473388,1750277317157,-230.29,0.000262,31]
[366473389,1750277317183,-230.29,0.000262,31]
[366473390,1750277317209,-230.29,0.000262,31]
[366473391,1750277317235,-230.29,0.000262,31]
[366473392,1750277317260,-230.29,0.000262,31]
[366473393,1750277317286,-230.29,0.000262,31]
[366473394,1750277317312,-230.29,0.000262,31]
[366473395,1750277317339,-230.29,0.000262,31]
[366473396,1750277317365,-230.29,0.000262,31]
[366473397,1750277317391,-230.29,0.000262,31]
[366473398,1750277317416,-230.29,0.000262,31]
[366473399,1750277317442,-230.29,0.000262,31]
[366473400,1750277317469,-230.29,0.000262,31]
[366473401,1750277317498,-230.29,0.000262,31]
[366473402,1750277317526,-230.29,0.000262,31]
[366473403,1750277317553,-230.29,0.000262,31]
[366473404,1750277317580,-230.29,0.000262,31]
[366473405,1750277317606,-200.0,0.0002622,120]
[366473406,1750277317632,-200.0,0.0002637,120]
[366473407,1750277317661,-230.29,0.000266,31]
[366473408,1750277317688,-230.29,0.000266,31]
[366473409,1750277317715,-230.29,0.000266,31]
[366473410,1750277317748,-230.29,0.000266,31]
[366473411,1750277317793,-230.29,0.000266,31]
[366473412,1750277317822,-230.29,0.000266,31]
[366473413,1750277317850,-230.29,0.000266,31]
[366473414,1750277317877,-230.29,0.000266,31]
[366473415,1750277317907,-230.29,0.000266,31]
[366473416,1750277317933,-230.29,0.000266,31]
[366473417,1750277317960,-230.29,0.000266,31]
[366473418,1750277317987,-230.29,0.000266,31]
[366473419,1750277318013,-200.0,0.0002663,120]
[366473420,1750277318037,-200.0,0.00026666,120]
[366473421,1750277318061,-200.0,0.00026708,120]
[366473422,1750277318089,-200.0,0.00026866,120]
[366473423,1750277318114,-200.0,0.0002698,120]
[366473424,1750277318139,-1110.78539,0.00027,120]
[366473425,1750277318163,-1110.78539,0.00027,120]
[366473426,1750277318187,-1110.78539,0.00027,120]
[366473427,1750277318212,-1110.78539,0.00027,120]
[366473428,1750277318236,-1110.78539,0.00027,120]
[366473429,1750277318260,-1110.78539,0.00027,120]
[366473430,1750277318284,-1110.78539,0.00027,120]
[366473431,1750277318308,-1110.78539,0.00027,120]
[366473432,1750277318333,-1110.78543,0.00027,120]
[366473433,1750277318359,-600.0,0.00027,120]
[366473434,1750277318386,-200.0,0.00027273,120]
[366473435,1750277318411,-200.0,0.0002732,120]
[366473436,1750277318435,-407.54381766,0.00027397,120]
[366473437,1750277318462,-6250.0,0.00027397,120]
[366473438,1750277318487,-200.0,0.00027404,120]
[366473439,1750277318512,-822.70851236,0.000275,30]
[366473440,1750277318537,-200.0,0.00027533,120]
[366473441,1750277318564,-200.0,0.00027794,120]
[366473442,1750277318590,-200.0,0.00027967,120]
[366473443,1750277318615,-3000.0,0.00028,120]
[366473444,1750277318639,-200.0,0.00028126,120]
[366473445,1750277318788,-200.0,0.00028216,120]
[366473446,1750277318817,-200.0,0.0002836,120]
[366473447,1750277318844,-200.0,0.00028399,120]
[366473448,1750277318868,-2967.83438491,0.000285,30]
[366473449,1750277318893,-200.0,0.00028554,120]
[366473450,1750277318918,-715.0,0.00028707,30]
[366473451,1750277318942,-200.0,0.00028957,120]
[366473452,1750277318966,-209.35038,0.00029,120]
[366473453,1750277318990,-209.35038,0.00029,120]
[366473454,1750277319013,-209.35039,0.00029,120]
[366473455,1750277319037,-7000.0,0.00029,30]
[366473456,1750277319061,-170.39,0.00029014,30]
[366473457,1750277319085,-715.0,0.00029107,30]
[366473458,1750277319109,-200.0,0.00029777,120]
[366473459,1750277319132,-200.0,0.00029868,120]
[366473460,1750277319156,-200.0,0.0003,120]
[366473461,1750277319180,-443.3494357,0.0003,30]
[366473462,1750277319204,-3000.0,0.0003,120]
[366473463,1750277319228,-20000.0,0.0003,120]
[366473464,1750277319253,-315.48910325,0.0003,120]
[366473465,1750277319278,-715.0,0.00030107,30]
[366473466,1750277319303,-200.0,0.0003012,120]
[366473467,1750277319329,-200.0,0.00030141,120]
[366473468,1750277319355,-200.0,0.00030189,120]
[366473469,1750277319380,-200.0,0.00030195,120]
[366473470,1750277319405,-200.0,0.00030344,120]
[366473471,1750277319429,-340.79,0.00030396,30]
[366473472,1750277319453,-1333.0,0.00030575,120]
[366473473,1750277319478,-200.0,0.00030682,120]
[366473474,1750277319502,-200.0,0.00030745,120]
[366473475,1750277319527,-200.0,0.00030802,120]
[366473476,1750277319551,-200.0,0.00030914,120]
[366473477,1750277319576,-835.98428123,0.00031,120]
[366473478,1750277319601,-424.70586748,0.00031,120]
[366473479,1750277319626,-200.0,0.00031124,120]
[366473480,1750277319650,-200.0,0.00031318,120]
[366473481,1750277319675,-200.0,0.0003134,120]
[366473482,1750277319698,-200.0,0.00031353,120]
[366473483,1750277319723,-10268.76531562,0.000314,30]
[366473484,1750277319749,-200.0,0.00031434,120]
[366473485,1750277319773,-200.0,0.0003149,120]
[366473486,1750277319798,-200.0,0.00031529,120]
[366473487,1750277319823,-200.0,0.0003153,120]
[366473488,1750277319846,-200.0,0.0003153,120]
[366473489,1750277319870,-200.0,0.0003153,120]
[366473490,1750277319893,-200.0,0.0003153,120]
[366473491,1750277319917,-200.0,0.0003153,120]
[366473492,1750277319940,-200.0,0.0003153,120]
[366473493,1750277319965,-200.0,0.00031599,120]
[366473494,1750277319989,-200.0,0.00031675,120]
[366473495,1750277320013,-511.18,0.00031777,30]
[366473496,1750277320037,-200.0,0.00031856,120]
[366473497,1750277320061,-200.0,0.00031907,120]
[366473498,1750277320085,-200.0,0.00031918,120]
[366473499,1750277320109,-200.0,0.0003193,120]
[366473500,1750277320132,-10268.76431562,0.0003195,30]
[366473501,1750277320155,-10268.76431562,0.0003195,30]
[366473502,1750277320179,-6250.0,0.00031963,120]
[366473503,1750277320203,-3000.0,0.00032,120]
[366473504,1750277320225,-1000.0,0.00032,30]
[366473505,1750277320249,-804.46964631,0.00032055,30]
[366473506,1750277320271,-200.0,0.00032208,120]
[366473507,1750277320294,-200.0,0.00032253,120]
[366473508,1750277320318,-200.0,0.00032392,120]
[366473509,1750277320342,-200.0,0.00032826,120]
[366473510,1750277320366,-200.0,0.00032832,120]
[366473511,1750277320389,-200.0,0.00032867,120]
[366473512,1750277320411,-273.7467239,0.0003287,120]
[366473513,1750277320437,-2231.32,0.00032877,120]
[366473514,1750277320462,-715.0,0.00032907,60]
[366473515,1750277320485,-200.0,0.00032941,120]
[366473516,1750277320507,-1000.0,0.00033,120]
[366473517,1750277320532,-715.0,0.00033107,87]
[366473518,1750277320556,-200.0,0.00033141,120]
[366473519,1750277320579,-681.58,0.00033159,30]
[366473520,1750277320604,-715.0,0.00033307,52]
[366473521,1750277320627,-10268.76531562,0.000334,30]
[366473522,1750277320651,-715.0,0.00033507,85]
[366473523,1750277320675,-200.0,0.00033632,120]
[366473524,1750277320699,-715.0,0.00033707,69]
[366473525,1750277320721,-1000.0,0.000338,60]
[366473526,1750277320748,-715.0,0.00033907,48]
[366473527,1750277320771,-3000.0,0.00034,120]
[366473528,1750277320796,-715.0,0.00034107,30]
[366473529,1750277320819,-207.0,0.0003419,30]
[366473530,1750277320841,-208.0,0.0003421,30]
[366473531,1750277320865,-715.0,0.00034307,57]
[366473532,1750277320889,-151.0,0.00034489,34]
[366473533,1750277320914,-500.0,0.00034489,34]
[366473534,1750277320939,-500.0,0.00034489,34]
[366473535,1750277320964,-200.0,0.00034496,120]
[366473536,1750277320988,-715.0,0.00034507,62]
[366473537,1750277321013,-851.97,0.00034541,30]
[366473538,1750277321037,-10139.58943203,0.00034575,30]
[366473539,1750277321060,-200.0,0.00034585,120]
[366473540,1750277321084,-687.80403959,0.000346,120]
[366473541,1750277321108,-200.0,0.00034693,120]
[366473542,1750277321132,-715.0,0.00034707,38]
[366473543,1750277321156,-200.0,0.00034767,120]
[366473544,1750277321179,-200.0,0.00034807,120]
[366473545,1750277321204,-151.0,0.00034889,46]
[366473546,1750277321229,-500.0,0.00034889,46]
[366473547,1750277321254,-500.0,0.00034889,46]
[366473548,1750277321279,-715.0,0.00034907,75]
[366473549,1750277321424,-200.0,0.00034957,120]
[366473550,1750277321450,-151.0,0.00034999,30]
[366473551,1750277321475,-500.0,0.00034999,30]
[366473552,1750277321499,-500.0,0.00034999,30]
[366473553,1750277321523,-300.0,0.00034999,30]
[366473554,1750277321547,-200.0,0.00035,120]
[366473555,1750277321571,-210.75236201,0.00035,30]
[366473556,1750277321596,-1000.0,0.00035,30]
[366473557,1750277321619,-208.0,0.00035,30]
[366473558,1750277321642,-6999.999999,0.00035,120]
[366473559,1750277321665,-207.0,0.00035,30]
[366473560,1750277321689,-207.0,0.00035,30]
[366473561,1750277321713,-889.54245504,0.00035014,90]
[366473562,1750277321744,-200.0,0.00035019,120]
[366473563,1750277321775,-200.0,0.0003504,120]
[366473564,1750277321799,-200.0,0.00035067,120]
[366473565,1750277321822,-151.0,0.00035089,59]
[366473566,1750277321847,-500.0,0.00035089,59]
[366473567,1750277321871,-500.0,0.00035089,59]
[366473568,1750277321895,-300.0,0.00035089,59]
[366473569,1750277321919,-715.0,0.00035107,42]
[366473570,1750277321942,-200.0,0.00035234,120]
[366473571,1750277321966,-200.0,0.00035289,32]
[366473572,1750277321990,-151.0,0.00035289,32]
[366473573,1750277322014,-151.0,0.00035289,32]
[366473574,1750277322038,-500.0,0.00035289,32]
[366473575,1750277322061,-151.0,0.00035289,32]
[366473576,1750277322087,-500.0,0.00035289,32]
[366473577,1750277322111,-500.0,0.00035289,32]
[366473578,1750277322134,-5000.0,0.00035289,32]
[366473579,1750277322158,-300.0,0.00035289,32]
[366473580,1750277322183,-715.0,0.00035307,77]
[366473581,1750277322207,-200.0,0.00035342,120]
[366473582,1750277322231,-152.0,0.000355,120]
[366473583,1750277322254,-715.0,0.00035507,60]
[366473584,1750277322278,-200.0,0.0003558,120]
[366473585,1750277325972,160.0,0.00025,30]
[366473586,1750277326398,160.0,0.00031,120]
[366473587,1750277332832,315.48910325,0.00024,30]
[366473588,1750277333223,315.48910325,0.0003,120]
[366473589,1750277334696,360.16,0.00018392,2]
[366473590,1750277339327,154.35,0.00028985,30]
[366473591,1750277339718,308.71,0.00030365,30]
[366473592,1750277340647,463.06,0.00031745,30]
[366473593,1750277341108,617.42,0.00033126,30]
[366473594,1750277341502,771.77,0.00034506,30]
[366473595,1750277372830,-715.0,0.00035707,89]
[366473596,1750277372855,-200.0,0.0003572,120]
[366473597,1750277372879,-200.0,0.00035741,120]
[366473598,1750277372905,-926.13,0.00035886,30]
[366473599,1750277372931,-715.0,0.00035907,67]
[366473600,1750277372954,-1000.50189423,0.00036,60]
[366473601,1750277372978,-32318.0,0.00036,30]
[366473602,1750277373003,-1000.0,0.00036,120]
[366473603,1750277373028,-36469.95532947,0.00036,30]
[366473604,1750277373054,-4681.91902484,0.00036,120]
[366473605,1750277373079,-200.0,0.00036106,120]
[366473606,1750277373104,-715.0,0.00036107,66]
[366473607,1750277373130,-200.0,0.00036216,120]
[366473608,1750277373156,-715.0,0.00036307,77]
[366473609,1750277373181,-200.0,0.00036422,120]
[366473610,1750277373207,-493.93166516,0.00036493,120]
[366473611,1750277373231,-32389.95701791,0.000365,120]
[366473612,1750277373257,-715.0,0.00036507,72]
[366473613,1750277373284,-6250.0,0.0003653,120]
[366473614,1750277373311,-200.0,0.00036624,120]
[366473615,1750277373336,-715.0,0.00036707,50]
[366473616,1750277373363,-200.0,0.0003672,120]
[366473617,1750277373390,-6153.97494498,0.00036898,120]
[366473618,1750277373416,-1000.0,0.000369,120]
[366473619,1750277373440,-715.0,0.00036907,58]
[366473620,1750277373466,-500.0,0.00036975,30]
[366473621,1750277373491,-715.0,0.00037107,56]
[366473622,1750277373517,-1080.48,0.00037266,30]
[366473623,1750277373543,-715.0,0.00037307,46]
[366473624,1750277373569,-715.0,0.00037507,44]
[366473625,1750277373593,-715.0,0.00037707,68]
[366473626,1750277373619,-200.0,0.00037836,120]
[366473627,1750277373643,-200.0,0.00037836,120]
[366473628,1750277373668,-200.0,0.00037836,120]
[366473629,1750277373693,-200.0,0.00037836,120]
[366473630,1750277373717,-200.0,0.00037836,120]
[366473631,1750277373742,-200.0,0.00037836,120]
[366473632,1750277373770,-267.63509052,0.00037836,120]
[366473633,1750277373796,-715.0,0.00037907,31]
[366473634,1750277373822,-1000.0,0.00038,120]
[366473635,1750277373849,-715.0,0.00038107,34]
[366473636,1750277373874,-715.0,0.00038307,69]
[366473637,1750277373898,-500.0,0.000385,120]
[366473638,1750277373922,-2504.71242,0.000385,65]
[366473639,1750277373948,-715.0,0.00038507,120]
[366473640,1750277373975,-1234.84,0.00038647,30]
[366473641,1750277374002,-715.0,0.00038707,120]
[366473642,1750277374026,-9516.19587355,0.0003888,30]
[366473643,1750277374051,-715.0,0.00038907,120]
[366473644,1750277374077,-415.51239006,0.00039,120]
[366473645,1750277374101,-5291.68080853,0.00039,120]
[366473646,1750277374127,-5373.92713426,0.00039,120]
[366473647,1750277374152,-715.0,0.00039107,120]
[366473648,1750277374177,-715.0,0.00039307,120]
[366473649,1750277374200,-350000.0,0.0003944,30]
[366473650,1750277374222,-232.40025724,0.00039452,120]
[366473651,1750277374246,-1127.17437419,0.000395,30]
[366473652,1750277374270,-715.0,0.00039507,120]
[366473653,1750277374295,-715.0,0.00039707,120]
[366473654,1750277374320,-1000.0,0.000399,120]
[366473655,1750277374345,-715.0,0.00039907,120]
[366473656,1750277374371,-2000.0,0.0004,120]
[366473657,1750277374394,-4844.4315659,0.0004,120]
[366473658,1750277374419,-5774.37955606,0.0004,30]
[366473659,1750277374443,-2498.21920999,0.0004,120]
[366473660,1750277374466,-100000.000009,0.0004,30]
[366473661,1750277374490,-215.20214559,0.0004,30]
[366473662,1750277374514,-73091.75919926,0.0004,120]
[366473663,1750277374537,-1103.62448055,0.0004,30]
[366473664,1750277374561,-160.0,0.0004,120]
[366473665,1750277374584,-315.48910325,0.0004,120]
[366473666,1750277374607,-155.0,0.0004,120]
[366473667,1750277374632,-1389.19,0.00040027,30]
[366473668,1750277374656,-715.0,0.00040107,120]
[366473669,1750277374680,-715.0,0.00040307,120]
[366473670,1750277374705,-715.0,0.00040507,120]
[366473671,1750277374728,-715.0,0.00040707,120]
[366473672,1750277374754,-715.0,0.00040907,120]
[366473673,1750277374778,-6116.0,0.00041,120]
[366473674,1750277374801,-152.0,0.00041041,31]
[366473675,1750277374825,-152.0,0.00041041,31]
[366473676,1750277374848,-152.0,0.00041041,31]
[366473677,1750277374871,-152.0,0.00041041,31]
[366473678,1750277375023,-6250.0,0.00041096,120]
[366473679,1750277375048,-715.0,0.00041107,120]
[366473680,1750277375071,-715.0,0.00041307,120]
[366473681,1750277375094,-500.0,0.000414,120]
[366473682,1750277375118,-1543.55,0.00041407,30]
[366473683,1750277375141,-715.0,0.00041507,120]
[366473684,1750277375165,-715.0,0.00041707,120]
[366473685,1750277375188,-715.0,0.00041907,120]
[366473686,1750277375212,-1000.0,0.00042,120]
[366473687,1750277375236,-715.0,0.00042107,120]
[366473688,1750277375258,-715.0,0.00042307,120]
[366473689,1750277375282,-1758.94368165,0.000424,120]
[366473690,1750277375305,-500.0,0.000425,120]
[366473691,1750277375328,-2326.0,0.000425,120]
[366473692,1750277375353,-715.0,0.00042507,120]
[366473693,1750277375377,-715.0,0.00042707,120]
[366473694,1750277375401,-715.0,0.00042907,120]
[366473695,1750277375424,-715.0,0.00043107,120]
[366473696,1750277375448,-363.844,0.00043143,66]
[366473697,1750277375471,-1000.0,0.000432,30]
[366473698,1750277375495,-715.0,0.00043307,120]
[366473699,1750277375518,-715.0,0.00043507,120]
[366473700,1750277375542,-715.0,0.00043707,120]
[366473701,1750277375566,-1000.0,0.000438,90]
[366473702,1750277375590,-1000.0,0.000438,90]
[366473703,1750277413369,267.17,0.00018865,2]
[366473704,1750277424041,2393.5837865,0.00019068,2]
[366473726,1750277432093,-196.1815304,0.00019175,2]
[366473729,1750277432103,-198.6092121,0.00019176,2]
[366473731,1750277432113,-7298.8151954,0.00019178,2]
[366473734,1750277432122,-1200.0,0.00019267,2]
[366473736,1750277432131,-174.84543367,0.000193,2]
[366473738,1750277432140,-300.0,0.00019734,2]
[366473740,1750277432149,-300.0,0.00019734,2]
[366473742,1750277432159,-300.0,0.00019734,2]
[366473744,1750277432168,-936.8266457,0.00019735,2]
[366473746,1750277432177,-213.3145634,0.00019735,2]
[366473748,1750277432187,-534.35,0.00019763,2]
[366473750,1750277432197,-160.61420732,0.00019766,2]
[366473752,1750277432206,-303.7241313,0.00019838,2]
[366473754,1750277432216,-372.54326831,0.00019839,2]
[366473756,1750277432226,-22190.49015297,0.0001984,2]
[366473759,1750277432237,-27809.50984703,0.0001984,2]
[366473761,1750277432247,-766.1209014,0.0001984,2]
[366473763,1750277432256,-174.84543367,0.00019892,2]
[366473765,1750277432265,-426.78634933,0.00019914,2]
[366473767,1750277432275,-500.0,0.00019939,2]
[366473769,1750277432284,-2920.66462691,0.0001994,2]
[366473771,1750277432294,-1103.158837,0.0002,2]
[366473773,1750277432303,-300.0,0.00020185,2]
[366473775,1750277432312,-269.499731,0.00020187,2]
[366473777,1750277432321,-500.0,0.00020213,2]
[366473779,1750277432331,-607.36,0.00020247,2]
[366473781,1750277432340,-864.2992677,0.00020347,2]
[366473783,1750277432349,-640.5285468,0.0002038,2]
[366473785,1750277432363,-266.105638,0.00020434,2]
[366473787,1750277432373,-10000.0,0.00020436,2]
[366473789,1750277432383,-500.0,0.00020487,2]
[366473791,1750277432392,-303.72413126,0.00020593,2]
[366473792,1750277432402,-801.52,0.00020661,2]
[366473793,1750277432412,-472.56047162,0.00020761,2]
[366473794,1750277432421,-363.844,0.00020857,2]
[366473795,1750277432431,-426.78634932,0.00020866,2]
[366473796,1750277432440,-577.45,0.000209,2]
[366473797,1750277432450,-376.8327122,0.0002091,2]
[366473798,1750277432460,-1680.0,0.00021097,2]
[366473799,1750277432470,-168.0,0.00021344,2]
[366473800,1750277432479,-303.72413126,0.00021348,2]
[366473801,1750277432489,-420.0,0.00021494,2]
[366473802,1750277432498,-300.0,0.00021494,2]
[366473803,1750277432508,-300.0,0.00021494,2]
[366473804,1750277432518,-160.0,0.00021545,2]
[366473805,1750277432528,-1068.7,0.0002156,2]
[366473806,1750277432537,-394.0,0.00021635,2]
[366473807,1750277432547,-394.0,0.00021653,2]
[366473808,1750277432557,-160.0,0.00021718,2]
[366473809,1750277432567,-500.0,0.00021797,2]
[366473810,1750277432577,-3456.20640767,0.00021817,2]
[366473811,1750277432586,-426.78634932,0.00021817,2]
[366473812,1750277432596,-3025.0,0.00021826,2]
[366473813,1750277432606,-160.0,0.00021875,2]
[366473814,1750277432616,-833.54,0.00021889,3]
[366473815,1750277432626,-416.77,0.00021889,3]
[366473816,1750277432636,-625.18,0.00021889,3]
[366473817,1750277432646,-213.43818883,0.00021899,2]
[366473818,1750277432656,-845.78193577,0.00021899,2]
[366473819,1750277432666,-424.70586748,0.00021899,2]
[366473820,1750277432677,-229.98435572,0.00021899,2]
[366473821,1750277432687,-12542.39314967,0.00021899,2]
[366473822,1750277432698,-160.0,0.00021899,2]
[366473823,1750277432708,-160.0,0.00021899,2]
[366473824,1750277432717,-835.98428123,0.00021899,2]
[366473825,1750277432727,-160.0,0.00021899,2]
[366473826,1750277432737,-208.39,0.00021907,3]
[366473827,1750277432746,-394.0,0.00021914,2]
[366473828,1750277432756,-394.46301175,0.00021917,6]
[366473829,1750277432767,-460.0,0.00021917,6]
[366473830,1750277432777,-460.0,0.00021917,6]
[366473831,1750277432787,-460.0,0.00021917,6]
[366473832,1750277432796,-460.0,0.00021917,6]
[366473833,1750277432807,-460.0,0.00021917,6]
[366473834,1750277432817,-884.12357598,0.00021917,6]
[366473835,1750277432827,-460.0,0.00021917,6]
[366473836,1750277432837,-430.77599743,0.00021917,6]
[366473837,1750277432849,-460.0,0.00021917,6]
[366473838,1750277432858,-432.85651395,0.00021917,6]
[366473839,1750277432868,-420.0,0.00021917,6]
[366473840,1750277432878,-440.0,0.00021917,6]
[366473841,1750277432888,-460.0,0.00021917,6]
[366473842,1750277432897,-460.0,0.00021917,6]
[366473843,1750277432907,-506.79003034,0.00021917,6]
[366473844,1750277432916,-460.0,0.00021917,6]
[366473846,1750277432925,-504.2843535,0.00021917,6]
[366473848,1750277432935,-460.0,0.00021917,6]
[366473850,1750277432948,-460.0,0.00021917,6]
[366473852,1750277432958,-441.10220689,0.00021917,6]
[366473854,1750277432969,-244.53293145,0.00021917,6]
[366473855,1750277432978,-432.97502321,0.00021917,6]
[366473856,1750277432989,-460.0,0.00021917,6]
[366473858,1750277433000,-460.0,0.00021917,6]
[366473860,1750277433011,-460.0,0.00021917,6]
[366473862,1750277433020,-598.75983183,0.00021917,6]
[366473864,1750277433031,-460.0,0.00021917,6]
[366473866,1750277433041,-460.0,0.00021917,6]
[366473868,1750277433051,-441.32488299,0.00021917,6]
[366473870,1750277433061,-460.0,0.00021917,6]
[366473872,1750277433071,-460.0,0.00021917,6]
[366473874,1750277433081,-440.0,0.00021917,6]
[366473876,1750277433090,-460.0,0.00021917,6]
[366473878,1750277433100,-460.0,0.00021917,6]
[366473880,1750277433110,-460.0,0.00021917,6]
[366473882,1750277433121,-460.0,0.00021917,6]